lending/lending_fUSD_20250131
["ID","MTS","AMOUNT","RATE_DAILY","PERIOD"]
[351101866,1738337439322,-500.0,0.00016438,2]
[351101867,1738337439332,-500.0,0.00016438,2]
[351101868,1738337439341,-500.0,0.00016438,2]
[351101869,1738337439351,-500.0,0.00016438,2]
[351101870,1738337439361,-508.72552181,0.00016438,2]
[351101871,1738337439371,-500.0,0.00016438,2]
[351101872,1738337439380,-500.0,0.00016438,2]
[351101873,1738337439389,-500.0,0.00016438,2]
[351101874,1738337439399,-500.0,0.00016438,2]
[351101875,1738337439408,-500.0,0.00016438,2]
[351101876,1738337439417,-500.0,0.00016438,2]
[351101877,1738337439427,-500.0,0.00016438,2]
[351101878,1738337439436,-504.56463705,0.00016438,2]
[351101879,1738337439445,-500.0,0.00016438,2]
[351101880,1738337439455,-500.0,0.00016438,2]
[351101881,1738337439464,-500.0,0.00016438,2]
[351101882,1738337439473,-500.0,0.00016438,2]
[351101883,1738337439483,-501.79703619,0.00016438,2]
[351101884,1738337439492,-500.0,0.00016438,2]
[351101885,1738337439502,-504.96462913,0.00016438,2]
[351101886,1738337439511,-500.0,0.00016438,2]
[351101887,1738337439521,-500.0,0.00016438,2]
[351101888,1738337439530,-500.0,0.00016438,2]
[351101889,1738337439540,-543.11,0.00016438,2]
[351101890,1738337439549,-500.0,0.00016438,2]
[351101891,1738337439559,-300.0,0.00016438,2]
[351101892,1738337439569,-500.0,0.00016438,2]
[351101893,1738337439579,-259.34200205,0.00016438,2]
[351101894,1738337439588,-500.0,0.00016438,2]
[351101895,1738337439599,-500.0,0.00016438,2]
[351101896,1738337439609,-165.35573388,0.00016438,2]
[351101897,1738337439618,-500.0,0.00016438,2]
[351101898,1738337439628,-500.0,0.00016438,2]
[351101899,1738337439638,-565.14711426,0.00016438,2]
[351101900,1738337439647,-500.0,0.00016438,2]
[351101901,1738337439656,-500.0,0.00016438,2]
[351101902,1738337439666,-500.0,0.00016438,2]
[351101903,1738337439675,-500.0,0.00016438,2]
[351101904,1738337439685,-260.0384156,0.00016438,2]
[351101905,1738337439694,-500.0,0.00016438,2]
[351101906,1738337439703,-500.0,0.00016438,2]
[351101907,1738337439713,-500.0,0.00016438,2]
[351101908,1738337439723,-599.500591,0.00016438,2]
[351101909,1738337439732,-500.0,0.00016438,2]
[351101910,1738337439741,-500.0,0.00016438,2]
[351101911,1738337439751,-500.0,0.00016438,2]
[351101912,1738337439760,-518.05611463,0.00016438,2]
[351101913,1738337439769,-500.0,0.00016438,2]
[351101914,1738337439779,-500.0,0.00016438,2]
[351101915,1738337439788,-500.0,0.00016438,2]
[351101916,1738337439798,-500.0,0.00016438,2]
[351101917,1738337439807,-500.0,0.00016438,2]
[351101918,1738337439817,-500.0,0.00016438,2]
[351101919,1738337439826,-503.39648191,0.00016438,2]
[351101920,1738337439836,-500.0,0.00016438,2]
[351101921,1738337439846,-500.0,0.00016438,2]
[351101922,1738337439855,-730.474873,0.00016438,2]
[351101923,1738337439864,-500.0,0.00016438,2]
[351101924,1738337439874,-500.0,0.00016438,2]
[351101925,1738337439883,-500.0,0.00016438,2]
[351101926,1738337439892,-500.0,0.00016438,2]
[351101927,1738337439902,-500.0,0.00016438,2]
[351101928,1738337439911,-507.30076674,0.00016438,2]
[351101929,1738337439921,-514.59390031,0.00016438,2]
[351101930,1738337439930,-500.0,0.00016438,2]
[351101932,1738337439944,-500.0,0.00016438,2]
[351101934,1738337439954,-500.0,0.00016438,2]
[351101936,1738337439963,-503.42253659,0.00016438,2]
[351101937,1738337439973,-500.0,0.00016438,2]
[351101938,1738337439983,-828.682327,0.00016438,2]
[351101939,1738337439992,-500.0,0.00016438,2]
[351101940,1738337440002,-500.0,0.00016438,2]
[351101941,1738337440011,-787.0,0.00016438,2]
[351101942,1738337440020,-500.0,0.00016438,2]
[351101943,1738337440031,-863.13,0.00016438,2]
[351101944,1738337440041,-153.436238,0.00016438,2]
[351101945,1738337440051,-500.0,0.00016438,2]
[351101946,1738337440060,-500.0,0.00016438,2]
[351101947,1738337440070,-500.0,0.00016438,2]
[351101948,1738337440079,-500.0,0.00016438,2]
[351101949,1738337440088,-500.0,0.00016438,2]
[351101950,1738337440097,-757.27,0.00016438,2]
[351101951,1738337440106,-500.0,0.00016438,2]
[351101952,1738337440116,-500.0,0.00016438,2]
[351101953,1738337440126,-511.86,0.00016438,2]
[351101954,1738337440136,-244.29631066,0.00016438,2]
[351101955,1738337440146,-732.53,0.00016438,2]
[351101956,1738337440155,-500.0,0.00016438,2]
[351101957,1738337440164,-500.0,0.00016438,2]
[351101958,1738337440174,-500.0,0.00016438,2]
[351101959,1738337440184,-500.0,0.00016438,2]
[351101960,1738337440194,-500.0,0.00016438,2]
[351101961,1738337440204,-500.0,0.00016438,2]
[351101962,1738337440214,-341.96981622,0.00016438,2]
[351101963,1738337440224,-325.28213788,0.00016438,2]
[351101964,1738337440233,-500.0,0.00016438,2]
[351101965,1738337440243,-500.0,0.00016438,2]
[351101966,1738337440252,-500.0,0.00016438,2]
[351101967,1738337440262,-500.0,0.00016438,2]
[351101968,1738337440272,-784.14,0.00016438,2]
[351101969,1738337440282,-500.0,0.00016438,2]
[351101970,1738337440293,-405.51609333,0.00016438,2]
[351101971,1738337440302,-401.42954209,0.00016438,2]
[351101972,1738337440312,-502.47435186,0.00016438,2]
[351101973,1738337440321,-500.0,0.00016438,2]
[351101974,1738337440330,-158.104945,0.00016438,2]
[351101975,1738337440339,-500.0,0.00016438,2]
[351101976,1738337440349,-503.46728701,0.00016438,2]
[351101977,1738337440358,-500.0,0.00016438,2]
[351101978,1738337440367,-500.0,0.00016438,2]
[351101979,1738337440377,-500.0,0.00016438,2]
[351101980,1738337440387,-571.79,0.00016438,2]
[351101981,1738337440396,-500.0,0.00016438,2]
[351101982,1738337440405,-500.0,0.00016438,2]
[351101983,1738337440414,-500.0,0.00016438,2]
[351101984,1738337440423,-500.0,0.00016438,2]
[351101985,1738337440433,-500.0,0.00016438,2]
[351101986,1738337440442,-500.0,0.00016438,2]
[351101987,1738337440452,-500.0,0.00016438,2]
[351101988,1738337440461,-500.0,0.00016438,2]
[351101989,1738337440471,-500.0,0.00016438,2]
[351101990,1738337440480,-543.98413662,0.00016438,2]
[351101991,1738337440490,-755.44,0.00016438,2]
[351101992,1738337440499,-500.0,0.00016438,2]
[351101993,1738337440509,-500.0,0.00016438,2]
[351101994,1738337440518,-500.0,0.00016438,2]
[351101995,1738337440527,-496.32168467,0.00016438,2]
[351101996,1738337440536,-500.0,0.00016438,2]
[351101997,1738337440548,-500.0,0.00016438,2]
[351101998,1738337440558,-500.0,0.00016438,2]
[351101999,1738337440567,-500.0,0.00016438,2]
[351102000,1738337440576,-500.0,0.00016438,2]
[351102001,1738337440585,-830.49,0.00016438,2]
[351102002,1738337440595,-671.98,0.00016438,2]
[351102003,1738337440604,-531.75,0.00016438,2]
[351102004,1738337440614,-500.0,0.00016438,2]
[351102005,1738337440623,-940.54,0.00016438,2]
[351102006,1738337440632,-500.0,0.00016438,2]
[351102007,1738337440642,-500.0,0.00016438,2]
[351102008,1738337440651,-1039.0,0.00016438,2]
[351102009,1738337440660,-500.0,0.00016438,2]
[351102010,1738337440669,-500.0,0.00016438,2]
[351102011,1738337440678,-500.0,0.00016438,2]
[351102012,1738337440687,-500.0,0.00016438,2]
[351102013,1738337440696,-500.0,0.00016438,2]
[351102014,1738337440706,-500.0,0.00016438,2]
[351102015,1738337440715,-500.0,0.00016438,2]
[351102016,1738337440724,-500.0,0.00016438,2]
[351102017,1738337440733,-735.14,0.00016438,2]
[351102018,1738337440742,-500.0,0.00016438,2]
[351102019,1738337440752,-503.17119696,0.00016438,2]
[351102020,1738337440761,-1680.84,0.00016438,2]
[351102021,1738337440771,-502.50114763,0.00016438,2]
[351102022,1738337440780,-525.64,0.00016438,2]
[351102023,1738337440792,-500.0,0.00016438,2]
[351102024,1738337440802,-808.19,0.00016438,2]
[351102025,1738337440811,-500.0,0.00016438,2]
[351102026,1738337440821,-500.0,0.00016438,2]
[351102027,1738337440830,-500.0,0.00016438,2]
[351102028,1738337440840,-724.25,0.00016438,2]
[351102029,1738337440849,-500.0,0.00016438,2]
[351102030,1738337440858,-500.0,0.00016438,2]
[351102031,1738337440867,-500.0,0.00016438,2]
[351102032,1738337440876,-1269.36,0.00016438,2]
[351102033,1738337440885,-517.66,0.00016438,2]
[351102034,1738337440895,-500.0,0.00016438,2]
[351102035,1738337440904,-500.0,0.00016438,2]
[351102036,1738337440913,-500.0,0.00016438,2]
[351102037,1738337440922,-500.0,0.00016438,2]
[351102038,1738337440931,-1040.31,0.00016438,2]
[351102039,1738337440941,-500.0,0.00016438,2]
[351102040,1738337440953,-500.0,0.00016438,2]
[351102041,1738337440962,-500.0,0.00016438,2]
[351102042,1738337440971,-573.1,0.00016438,2]
[351102043,1738337440980,-1175.11,0.00016438,2]
[351102044,1738337440991,-500.0,0.00016438,2]
[351102045,1738337441001,-500.0,0.00016438,2]
[351102046,1738337441010,-500.0,0.00016438,2]
[351102047,1738337441021,-500.0,0.00016438,2]
[351102048,1738337441031,-500.0,0.00016438,2]
[351102049,1738337441046,-892.86,0.00016438,2]
[351102050,1738337441056,-500.0,0.00016438,2]
[351102051,1738337441066,-382.1473328,0.00016438,2]
[351102052,1738337441130,-831.38,0.00016438,2]
[351102053,1738337441142,-500.0,0.00016438,2]
[351102054,1738337441152,-500.0,0.00016438,2]
[351102055,1738337441162,-500.0,0.00016438,2]
[351102056,1738337441172,-597.54,0.00016438,2]
[351102057,1738337441183,-744.02,0.00016438,2]
[351102058,1738337441192,-500.0,0.00016438,2]
[351102059,1738337441202,-500.0,0.00016438,2]
[351102060,1738337441212,-677.33,0.00016438,2]
[351102061,1738337441222,-500.0,0.00016438,2]
[351102062,1738337441231,-500.0,0.00016438,2]
[351102063,1738337441241,-500.0,0.00016438,2]
[351102064,1738337441250,-577.7,0.00016438,2]
[351102065,1738337441259,-500.0,0.00016438,2]
[351102066,1738337441268,-552.25,0.00016438,2]
[351102067,1738337441278,-1171.17,0.00016438,2]
[351102068,1738337441288,-500.0,0.00016438,2]
[351102069,1738337441301,-500.0,0.00016438,2]
[351102070,1738337441311,-500.0,0.00016438,2]
[351102071,1738337441321,-500.0,0.00016438,2]
[351102072,1738337441330,-1201.98,0.00016438,2]
[351102073,1738337441340,-500.0,0.00016438,2]
[351102074,1738337441349,-962.2,0.00016438,2]
[351102075,1738337441358,-500.0,0.00016438,2]
[351102076,1738337441368,-500.0,0.00016438,2]
[351102077,1738337441377,-521.96,0.00016438,2]
[351102078,1738337441386,-500.0,0.00016438,2]
[351102079,1738337441396,-624.35,0.00016438,2]
[351102080,1738337441405,-500.0,0.00016438,2]
[351102081,1738337441415,-547.88,0.00016438,2]
[351102082,1738337441424,-527.05,0.00016438,2]
[351102083,1738337441433,-500.0,0.00016438,2]
[351102084,1738337441443,-661.37,0.00016438,2]
[351102085,1738337441452,-896.13,0.00016438,2]
[351102086,1738337441461,-500.0,0.00016438,2]
[351102087,1738337441471,-500.0,0.00016438,2]
[351102088,1738337441480,-500.0,0.00016438,2]
[351102089,1738337441490,-561.30267476,0.00016438,2]
[351102090,1738337441499,-627.37,0.00016438,2]
[351102091,1738337441508,-548.91,0.00016438,2]
[351102092,1738337441517,-502.21945335,0.00016438,2]
[351102093,1738337441525,-500.0,0.00016438,2]
[351102094,1738337441535,-500.0,0.00016438,2]
[351102095,1738337441546,-500.0,0.00016438,2]
[351102096,1738337441555,-500.0,0.00016438,2]
[351102097,1738337441564,-500.0,0.00016438,2]
[351102098,1738337441573,-523.11,0.00016438,2]
[351102099,1738337441583,-500.0,0.00016438,2]
[351102100,1738337441592,-525.44,0.00016438,2]
[351102101,1738337441601,-500.0,0.00016438,2]
[351102102,1738337441610,-1191.37,0.00016438,2]
[351102103,1738337441619,-500.0,0.00016438,2]
[351102104,1738337441627,-515.3,0.00016438,2]
[351102105,1738337441636,-500.0,0.00016438,2]
[351102106,1738337441645,-508.89,0.00016438,2]
[351102107,1738337441654,-500.0,0.00016438,2]
[351102108,1738337441663,-575.49276664,0.00016438,2]
[351102109,1738337441672,-834.86,0.00016438,2]
[351102110,1738337441681,-501.02039354,0.00016438,2]
[351102111,1738337441690,-500.0,0.00016438,2]
[351102112,1738337441700,-500.0,0.00016438,2]
[351102113,1738337441709,-500.0,0.00016438,2]
[351102114,1738337441718,-710.41,0.00016438,2]
[351102115,1738337441727,-500.0,0.00016438,2]
[351102116,1738337441736,-500.0,0.00016438,2]
[351102117,1738337441746,-987.06,0.00016438,2]
[351102118,1738337441755,-500.0,0.00016438,2]
[351102119,1738337441764,-500.0,0.00016438,2]
[351102120,1738337441773,-500.0,0.00016438,2]
[351102121,1738337441782,-507.9,0.00016438,2]
[351102122,1738337441793,-583.45,0.00016438,2]
[351102123,1738337441803,-500.0,0.00016438,2]
[351102124,1738337441812,-500.0,0.00016438,2]
[351102125,1738337441821,-500.0,0.00016438,2]
[351102126,1738337441830,-575.66,0.00016438,2]
[351102127,1738337441839,-500.0,0.00016438,2]
[351102128,1738337441850,-500.0,0.00016438,2]
[351102129,1738337441861,-500.0,0.00016438,2]
[351102130,1738337441870,-500.0,0.00016438,2]
[351102131,1738337441880,-500.0,0.00016438,2]
[351102132,1738337441889,-747.35,0.00016438,2]
[351102133,1738337441898,-511.84,0.00016438,2]
[351102134,1738337441907,-500.0,0.00016438,2]
[351102135,1738337441917,-500.0,0.00016438,2]
[351102136,1738337441926,-599.23,0.00016438,2]
[351102137,1738337441936,-500.0,0.00016438,2]
[351102138,1738337441946,-500.0,0.00016438,2]
[351102139,1738337441956,-500.0,0.00016438,2]
[351102140,1738337441966,-500.0,0.00016438,2]
[351102141,1738337441975,-500.0,0.00016438,2]
[351102142,1738337441985,-500.0,0.00016438,2]
[351102143,1738337441995,-500.0,0.00016438,2]
[351102144,1738337442004,-500.0,0.00016438,2]
[351102145,1738337442014,-500.0,0.00016438,2]
[351102146,1738337442023,-500.0,0.00016438,2]
[351102147,1738337442033,-500.0,0.00016438,2]
[351102148,1738337442044,-879.7,0.00016438,2]
[351102149,1738337442053,-1018.64,0.00016438,2]
[351102150,1738337442062,-500.0,0.00016438,2]
[351102151,1738337442072,-391.28706192,0.00016438,2]
[351102152,1738337442081,-1075.66,0.00016438,2]
[351102153,1738337442091,-500.0,0.00016438,2]
[351102154,1738337442100,-584.66,0.00016438,2]
[351102155,1738337442109,-500.0,0.00016438,2]
[351102156,1738337442119,-500.0,0.00016438,2]
[351102157,1738337442129,-500.0,0.00016438,2]
[351102158,1738337442139,-500.0,0.00016438,2]
[351102159,1738337442148,-500.0,0.00016438,2]
[351102160,1738337442158,-500.0,0.00016438,2]
[351102161,1738337442167,-500.0,0.00016438,2]
[351102162,1738337442176,-500.0,0.00016438,2]
[351102163,1738337442186,-500.0,0.00016438,2]
[351102164,1738337442195,-500.0,0.00016438,2]
[351102165,1738337442205,-1110.29,0.00016438,2]
[351102166,1738337442214,-786.96,0.00016438,2]
[351102167,1738337442224,-525.19,0.00016438,2]
[351102168,1738337442233,-500.0,0.00016438,2]
[351102169,1738337442243,-500.0,0.00016438,2]
[351102170,1738337442253,-288.04658671,0.00016438,2]
[351102171,1738337442263,-849.92,0.00016438,2]
[351102172,1738337442273,-500.0,0.00016438,2]
[351102173,1738337442282,-1206.52,0.00016438,2]
[351102174,1738337442294,-657.29,0.00016438,2]
[351102175,1738337442304,-500.0,0.00016438,2]
[351102176,1738337442314,-617.02,0.00016438,2]
[351102177,1738337442324,-500.0,0.00016438,2]
[351102178,1738337442334,-835.77,0.00016438,2]
[351102179,1738337442343,-622.41,0.00016438,2]
[351102180,1738337442353,-500.0,0.00016438,2]
[351102181,1738337442363,-500.0,0.00016438,2]
[351102182,1738337442372,-511.36895195,0.00016438,2]
[351102183,1738337442382,-500.0,0.00016438,2]
[351102184,1738337442393,-500.0,0.00016438,2]
[351102185,1738337442403,-500.0,0.00016438,2]
[351102186,1738337442412,-500.0,0.00016438,2]
[351102187,1738337442421,-500.0,0.00016438,2]
[351102188,1738337442431,-705.74,0.00016438,2]
[351102189,1738337442440,-500.0,0.00016438,2]
[351102190,1738337442450,-667.2,0.00016438,2]
[351102191,1738337442459,-769.6,0.00016438,2]
[351102192,1738337442468,-526.43,0.00016438,2]
[351102193,1738337442478,-8380.77,0.00016438,2]
[351102194,1738337442487,-500.0,0.00016438,2]
[351102195,1738337442497,-892.43,0.00016438,2]
[351102196,1738337442506,-537.89,0.00016438,2]
[351102197,1738337442516,-1039.9,0.00016438,2]
[351102198,1738337442525,-500.0,0.00016438,2]
[351102199,1738337442535,-500.0,0.00016438,2]
[351102200,1738337442546,-657.15,0.00016438,2]
[351102201,1738337442556,-500.0,0.00016438,2]
[351102202,1738337442565,-845.25,0.00016438,2]
[351102203,1738337442574,-500.0,0.00016438,2]
[351102204,1738337442583,-500.0,0.00016438,2]
[351102205,1738337442593,-500.0,0.00016438,2]
[351102206,1738337442602,-5003.51,0.00016438,2]
[351102207,1738337442611,-752.93,0.00016438,2]
[351102208,1738337442620,-500.0,0.00016438,2]
[351102209,1738337442630,-500.0,0.00016438,2]
[351102210,1738337442639,-889.66,0.00016438,2]
[351102211,1738337442648,-500.0,0.00016438,2]
[351102212,1738337442657,-500.0,0.00016438,2]
[351102213,1738337442666,-500.0,0.00016438,2]
[351102214,1738337442676,-382.95232958,0.00016438,2]
[351102215,1738337442686,-1655.9,0.00016438,2]
[351102216,1738337442695,-880.01,0.00016438,2]
[351102217,1738337442705,-500.0,0.00016438,2]
[351102218,1738337442714,-500.0,0.00016438,2]
[351102219,1738337442723,-500.0,0.00016438,2]
[351102220,1738337442732,-2194.0,0.00016438,2]
[351102221,1738337442742,-1065.51,0.00016438,2]
[351102222,1738337442751,-500.0,0.00016438,2]
[351102223,1738337442760,-898.54,0.00016438,2]
[351102224,1738337442769,-500.0,0.00016438,2]
[351102225,1738337442779,-500.0,0.00016438,2]
[351102226,1738337442788,-504.99,0.00016438,2]
[351102227,1738337442799,-1486.33,0.00016438,2]
[351102228,1738337442809,-1819.15,0.00016438,2]
[351102229,1738337442818,-500.0,0.00016438,2]
[351102230,1738337442828,-500.0,0.00016438,2]
[351102231,1738337442837,-541.91,0.00016438,2]
[351102232,1738337442846,-500.0,0.00016438,2]
[351102233,1738337442856,-500.0,0.00016438,2]
[351102234,1738337442866,-752.59,0.00016438,2]
[351102235,1738337442875,-500.0,0.00016438,2]
[351102237,1738337442885,-500.0,0.00016438,2]
[351102239,1738337442895,-500.0,0.00016438,2]
[351102241,1738337442905,-571.42,0.00016438,2]
[351102243,1738337442915,-1136.27,0.00016438,2]
[351102245,1738337442925,-592.92,0.00016438,2]
[351102247,1738337442934,-1384.93,0.00016438,2]
[351102249,1738337442945,-1273.02,0.00016438,2]
[351102251,1738337442956,-596.46,0.00016438,2]
[351102253,1738337442966,-3091.15,0.00016438,2]
[351102258,1738337442976,-500.0,0.00016438,2]
[351102262,1738337442986,-786.52,0.00016438,2]
[351102264,1738337442996,-962.97,0.00016438,2]
[351102266,1738337443006,-500.0,0.00016438,2]
[351102268,1738337443015,-1170.72,0.00016438,2]
[351102270,1738337443025,-1591.77,0.00016438,2]
[351102273,1738337443035,-650.06,0.00016438,2]
[351102275,1738337443046,-2042.14,0.00016438,2]
[351102277,1738337443056,-500.0,0.00016438,2]
[351102279,1738337443065,-562.34,0.00016438,2]
[351102281,1738337443075,-2348.41,0.00016438,2]
[351102282,1738337443085,-500.0,0.00016438,2]
[351102283,1738337443094,-500.0,0.00016438,2]
[351102284,1738337443104,-544.04605497,0.00016438,2]
[351102285,1738337443114,-861.57,0.00016438,2]
[351102286,1738337443123,-500.0,0.00016438,2]
[351102287,1738337443133,-2815.31,0.00016438,2]
[351102288,1738337443143,-627.28,0.00016438,2]
[351102289,1738337443152,-500.0,0.00016438,2]
[351102290,1738337443162,-1470.62,0.00016438,2]
[351102291,1738337443171,-500.0,0.00016438,2]
[351102292,1738337443181,-500.0,0.00016438,2]
[351102293,1738337443190,-500.0,0.00016438,2]
[351102294,1738337443199,-500.0,0.00016438,2]
[351102295,1738337443209,-1618.17,0.00016438,2]
[351102296,1738337443219,-602.1,0.00016438,2]
[351102297,1738337443228,-1129.3,0.00016438,2]
[351102298,1738337443237,-512.58,0.00016438,2]
[351102299,1738337443248,-807.04,0.00016438,2]
[351102300,1738337443257,-500.0,0.00016438,2]
[351102301,1738337443267,-1736.2,0.00016438,2]
[351102302,1738337443278,-500.0,0.00016438,2]
[351102303,1738337443287,-743.89,0.00016438,2]
[351102304,1738337443298,-500.0,0.00016438,2]
[351102305,1738337443308,-500.0,0.00016438,2]
[351102306,1738337443318,-600.71,0.00016438,2]
[351102307,1738337443328,-500.0,0.00016438,2]
[351102308,1738337443337,-1139.59,0.00016438,2]
[351102309,1738337443347,-550.58,0.00016438,2]
[351102310,1738337443356,-1335.88,0.00016438,2]
[351102311,1738337443365,-500.0,0.00016438,2]
[351102312,1738337443375,-500.0,0.00016438,2]
[351102313,1738337443384,-1127.7,0.00016438,2]
[351102314,1738337443393,-1619.6,0.00016438,2]
[351102315,1738337443403,-928.49,0.00016438,2]
[351102316,1738337443412,-500.0,0.00016438,2]
[351102317,1738337443421,-1587.1,0.00016438,2]
[351102318,1738337443430,-500.0,0.00016438,2]
[351102319,1738337443439,-500.0,0.00016438,2]
[351102320,1738337443449,-603.34,0.00016438,2]
[351102321,1738337443458,-516.36,0.00016438,2]
[351102322,1738337443467,-890.75,0.00016438,2]
[351102323,1738337443476,-500.0,0.00016438,2]
[351102325,1738337443485,-500.0,0.00016438,2]
[351102326,1738337443495,-5474.09,0.00016438,2]
[351102327,1738337443504,-564.44,0.00016438,2]
[351102328,1738337443514,-1030.81,0.00016438,2]
[351102329,1738337443523,-500.0,0.00016438,2]
[351102330,1738337443534,-5474.07,0.00016438,2]
[351102331,1738337443544,-2076.08,0.00016438,2]
[351102332,1738337443554,-1295.61,0.00016438,2]
[351102333,1738337443563,-812.44,0.00016438,2]
[351102334,1738337443572,-500.0,0.00016438,2]
[351102335,1738337443582,-2105.35,0.00016438,2]
[351102336,1738337443591,-1423.19,0.00016438,2]
[351102337,1738337443601,-1138.15,0.00016438,2]
[351102338,1738337443611,-500.0,0.00016438,2]
[351102339,1738337443620,-2846.62,0.00016438,2]
[351102340,1738337443631,-793.62,0.00016438,2]
[351102341,1738337443640,-1504.26,0.00016438,2]
[351102342,1738337443649,-500.0,0.00016438,2]
[351102343,1738337443659,-500.0,0.00016438,2]
[351102344,1738337443668,-1268.09,0.00016438,2]
[351102345,1738337443678,-598.83,0.00016438,2]
[351102346,1738337443687,-1451.75,0.00016438,2]
[351102347,1738337443697,-2285.34,0.00016438,2]
[351102348,1738337443706,-2654.62,0.00016438,2]
[351102349,1738337443716,-500.0,0.00016438,2]
[351102350,1738337443725,-500.0,0.00016438,2]
[351102351,1738337443734,-3941.33,0.00016438,2]
[351102352,1738337443743,-517.43,0.00016438,2]
[351102353,1738337443751,-2414.42,0.00016438,2]
[351102354,1738337443761,-506.84,0.00016438,2]
[351102355,1738337443770,-1454.44,0.00016438,2]
[351102356,1738337443779,-1020.91,0.00016438,2]
[351102357,1738337443788,-500.0,0.00016438,2]
[351102358,1738337443799,-2268.71,0.00016438,2]
[351102359,1738337443808,-776.94,0.00016438,2]
[351102360,1738337443817,-3588.73,0.00016438,2]
[351102361,1738337443826,-941.97,0.00016438,2]
[351102362,1738337443836,-500.0,0.00016438,2]
[351102363,1738337443845,-1929.94,0.00016438,2]
[351102364,1738337443855,-3163.78,0.00016438,2]
[351102365,1738337443864,-973.15,0.00016438,2]
[351102366,1738337443874,-717.94,0.00016438,2]
[351102367,1738337443883,-4082.67,0.00016438,2]
[351102368,1738337443892,-1717.79,0.00016438,2]
[351102369,1738337443902,-7980.75,0.00016438,2]
[351102370,1738337443911,-873.69,0.00016438,2]
[351102371,1738337443920,-632.26,0.00016438,2]
[351102372,1738337443930,-500.0,0.00016438,2]
[351102373,1738337443940,-1575.16,0.00016438,2]
[351102374,1738337443952,-526.65,0.00016438,2]
[351102375,1738337443961,-1884.85,0.00016438,2]
[351102376,1738337443970,-1765.61,0.00016438,2]
[351102377,1738337443979,-1299.7,0.00016438,2]
[351102379,1738337443989,-1070.07,0.00016438,2]
[351102381,1738337443998,-3248.07,0.00016438,2]
[351102383,1738337444007,-870.57,0.00016438,2]
[351102385,1738337444017,-500.0,0.00016438,2]
[351102387,1738337444027,-770.3,0.00016438,2]
[351102389,1738337444036,-2101.8,0.00016438,2]
[351102391,1738337444050,-528.68964082,0.00016438,2]
[351102393,1738337444060,-500.0,0.00016438,2]
[351102395,1738337444069,-1063.05,0.00016438,2]
[351102397,1738337444079,-3515.16,0.00016438,2]
[351102398,1738337444089,-3050.95,0.00016438,2]
[351102401,1738337444099,-534.24,0.00016438,2]
[351102403,1738337444109,-1232.13,0.00016438,2]
[351102404,1738337444119,-500.0,0.00016438,2]
[351102405,1738337444129,-500.0,0.00016438,2]
[351102406,1738337444139,-791.83,0.00016438,2]
[351102407,1738337444149,-2862.65,0.00016438,2]
[351102408,1738337444158,-500.0,0.00016438,2]